Cogmind - Beta 13 @@@ ROGUE MODE // 2024.04.01 @ 10:09:22 Player: Sixten Result: Destroyed by G-50 Soldier with Heavy Laser Performance ------------- Evolutions (2) 1000 Regions Visited (6) 1200 Robots Destroyed (35) 175 Value Destroyed (1065) 1065 Prototype IDs (23) 460 Alien Tech Used (0) 0 Bonus (300) 300 TOTAL SCORE: 4200 Bonus ------- Aligned with FarCom 300 Cogmind --------- Core Integrity 0/550 Matter 300/300 Energy 100/100 System Corruption 2% Temperature Cool (9) Movement Core (50) Location -8/Materials Parts ------- > --- POWER (1) -------- (None) > --- PROPULSION (4) --- (None) > --- UTILITY (4) ------ Advanced Visual Processing Unit > --- WEAPON (2) ------- (None) > --- INVENTORY (5) ---- Ion Engine Light Deuterium Engine Aluminum Leg Particle Gun Peak State ------------ > --- POWER ------------ (None) > --- PROPULSION ------- Flight Unit Flight Unit Flight Unit > --- UTILITY ---------- Large Storage Unit > --- WEAPON ----------- Firepult > --- INVENTORY -------- Ion Engine Light Ion Engine Light Ion Engine Light Ion Engine Targeting Computer Improved Light Cannon Improved Light Cannon Welding Torch [Rating: 25] Favorites ----------- Power Light Ion Engine Engine Light Ion Engine Propulsion Aluminum Leg Leg Aluminum Leg Wheel Wheel Flight Unit Flight Unit Utility Structural Scanner Device Structural Scanner Storage Large Storage Unit Processor Advanced Visual Processing Unit Protection Light Armor Plating Weapon Assault Rifle Energy Gun Spread Laser Energy Cannon Firepult Ballistic Gun Assault Rifle Ballistic Cannon Improved Light Cannon Launcher Grenade Launcher Special Weapon Welding Torch Impact Weapon Hammer Build | -11 -10 -9 -9 -9 -8 -8 ------- Run | Yrd Mat Mat Min Exi Min Mat Slots Evolved 4 | . . 2 . . . 2 Power . | . . . . . . . Propulsion 2 | . . 2 . . . . Utility 2 | . . . . . . 2 Weapon . | . . . . . . . Parts Attached 41 | 6 5 . 3 . 7 20 Power 6 | 1 1 . . . 2 2 Engine 6 | 1 1 . . . 2 2 Core . | . . . . . . . Reactor . | . . . . . . . Propulsion 10 | 2 . . 1 . 2 5 Treads . | . . . . . . . Leg 5 | 2 . . 1 . . 2 Wheel 2 | . . . . . 2 . Hover . | . . . . . . . Flight 3 | . . . . . . 3 Utility 8 | 1 2 . . . . 5 Device 3 | . 1 . . . . 2 Storage 2 | 1 1 . . . . . Processor 2 | . . . . . . 2 Hackware . | . . . . . . . Protection 1 | . . . . . . 1 Artifact . | . . . . . . . Weapon 17 | 2 2 . 2 . 3 8 Energy Gun 6 | 1 . . . . 2 3 Energy Cannon 1 | . . . . . . 1 Ballistic Gun 5 | 1 2 . 1 . . 1 Ballistic Cannon 1 | . . . 1 . . . Launcher 1 | . . . . . 1 . Special Weapon 2 | . . . . . . 2 Impact Weapon 1 | . . . . . . 1 Slashing Weapon . | . . . . . . . Piercing Weapon . | . . . . . . . Special Melee Weapon . | . . . . . . . Unidentified Prototypes . | . . . . . . . Parts Lost 31 | . 2 1 3 . 4 21 Power 5 | . 1 . 1 . 1 2 Propulsion 10 | . . 1 1 . 1 7 Utility 5 | . . . . . . 5 Weapon 11 | . 1 . 1 . 2 7 Highest Loss Streak 9 | . 2 1 3 . 4 9 To Critical Strikes . | . . . . . . . Average Slot Usage (%) 65 | . 89 72 57 55 66 59 Engine 5 | . 8 11 3 . 8 5 Leg 12 | . 28 17 10 11 6 8 Wheel 1 | . . . . . 7 . Flight 1 | . . . . . . 7 Device 10 | . 11 11 11 11 11 9 Storage 9 | . 14 11 11 11 11 1 Processor 1 | . . . . . . 9 Energy Gun 3 | . 7 . . . 8 6 Ballistic Gun 12 | . 19 22 14 11 6 6 Ballistic Cannon 4 | . . . 7 11 . . Launcher 1 | . . . . . 6 . Naked Turns . | . . . . . . . Heaviest Build 30 | 14 27 27 27 27 30 14 Greatest Support 26 | 20 20 20 10 10 20 26 Greatest Overweight (x) 9 | . 1 2 2 2 9 1 Average Overweight (x) 1 | . . 1 2 2 1 . Largest Inventory Capacity 15 | 8 15 15 15 15 15 15 Average Capacity 12 | 5 9 15 15 15 15 6 Most Carried 15 | 1 5 10 10 10 15 14 Average Carried 7 | . 3 7 8 8 11 5 Final Capacity 15 | 8 15 15 15 15 15 5 Final Carried 14 | 1 4 10 8 10 14 4 Class Distribution -------------------- 89% | Mutant 10% | Scavenger-Mutant Dominant Class ---------------- Mutant | -10/Materials Mutant | -9/Materials Mutant | -9/Mines Mutant | -9/Exiles Mutant | -8/Mines Scavenger-Mutant | -8/Materials Resources | -11 -10 -9 -9 -9 -8 -8 ----------- Run | Yrd Mat Mat Min Exi Min Mat Matter Collected 774 | 126 165 45 56 . 123 259 Remotely . | . . . . . . . Salvage Created 1050 | . 179 76 63 . 94 638 Parts 66 | . 9 6 5 . 16 30 Haulers Intercepted . | . . . . . . . Recyclers Shooed 1 | . . 1 . . . . Parts Field Recycled . | . . . . . . . Retrieved Matter . | . . . . . . . Parts Self-Destructed . | . . . . . . . Prevented . | . . . . . . . Kills | -11 -10 -9 -9 -9 -8 -8 ------- Run | Yrd Mat Mat Min Exi Min Mat Combat Hostiles Destroyed 31 | . 8 2 3 . 6 12 Melee 1 | . . . . . . 1 Guns 25 | . 7 2 2 . 5 9 Cannons 1 | . . . 1 . . . AOE 1 | . . . . . 1 . Classes Destroyed 8 | . 2 . 1 . 2 3 Worker 2 | . . . . . . 2 Builder 2 | . . . . . 2 . Swarmer 12 | . 6 . 1 . 5 . Grunt 11 | . 2 2 1 . . 6 Brawler 1 | . . . . . . 1 Duelist 2 | . . . 1 . . 1 Sentry 4 | . . . . . . 4 Hunter 1 | . . . . . 1 . Best Kill Streak 5 | . 5 1 2 . 3 5 Combat Bots Only 5 | . 5 1 2 . 3 5 Max Kills in Single Turn 2 | . 2 1 1 . 1 1 Gunslinging 1 | . 1 . . . . . Exploded 1 | . . . . . 1 . Melee 1 | . . . . . . 1 Uniques/NPCs Destroyed . | . . . . . . . Combat | -11 -10 -9 -9 -9 -8 -8 -------- Run | Yrd Mat Mat Min Exi Min Mat Hostile Shots Fired 302 | . 57 55 13 . 47 130 Missed 88 | . 21 26 2 . 10 29 Damage Taken 3068 | . 348 292 220 . 492 1716 Core 824 | . 54 30 89 . 94 557 Absorbed by Shields . | . . . . . . . Core Remaining (%) 74 | 100 78 . . . 46 . Volleys Fired 109 | . 26 15 10 . 20 38 Largest 2 | . 2 2 2 . 2 2 Hottest 250 | . 70 40 59 . 130 250 Shots Fired 189 | . 45 30 19 . 34 61 Gun 174 | . 45 30 12 . 29 58 Cannon 8 | . . . 7 . . 1 Launcher 5 | . . . . . 5 . Special 2 | . . . . . . 2 Kinetic 94 | . 20 30 19 . 7 18 Thermal 90 | . 25 . . . 22 43 Explosive 5 | . . . . . 5 . Electromagnetic . | . . . . . . . Robot Hit Streak 21 | . 13 2 5 . 10 21 Robot Miss Streak 6 | . 6 3 2 . 6 6 Penetration Max . | . . . . . . . Secondary Targets 4 | . 2 . . . 1 1 Max Gunslinging Chain 1 | . 1 . . . 1 1 Shots Hit Robots 135 | . 30 12 12 . 24 57 Core Hits 84 | . 10 5 6 . 24 39 Critical Kills 1 | . . . . . . 1 Critical Parts Destroyed . | . . . . . . . Critical Strikes 9 | . 5 . . . . 4 Burn 8 | . 5 . . . . 3 Smash 1 | . . . . . . 1 Melee Attacks 8 | . . . . . . 8 Impact 8 | . . . . . . 8 Slashing . | . . . . . . . Piercing . | . . . . . . . Sneak Attacks 2 | . . . . . . 2 Combat Hostiles . | . . . . . . . Follow-up Attacks . | . . . . . . . Damage Inflicted 2157 | . 389 153 183 . 411 1021 Guns 1621 | . 386 144 98 . 270 723 Cannons 82 | . . . 82 . . . Explosions 196 | . . . . . 141 55 Melee 209 | . . . . . . 209 Ramming 46 | . 3 9 3 . . 31 Kinetic 742 | . 161 144 180 . 28 229 Thermal 1019 | . 225 . . . 242 552 Explosive 141 | . . . . . 141 . Electromagnetic . | . . . . . . . Impact 209 | . . . . . . 209 Slashing . | . . . . . . . Piercing . | . . . . . . . Highest Corruption 2 | . 1 . . . . 2 Average Corruption 1 | . 1 . . . . 2 Corruption Purged . | . . . . . . . Corruption Blocked . | . . . . . . . Effects 3 | . . . . . . 3 Energy Discharges 1 | . . . . . . 1 Data Loss (minor) 2 | . . . . . . 2 Overload Shots . | . . . . . . . Overflow Damage 24 | . . . . . 24 . Projectiles . | . . . . . . . Explosions 24 | . . . . . 24 . Melee . | . . . . . . . Knockbacks 1 | . . . . . . 1 Impact 1 | . . . . . . 1 Kinetic . | . . . . . . . Secondary . | . . . . . . . Self-Inflicted Damage 26 | . . . . . 15 11 Shots 1 | . . . . . 1 . Rammed 1 | . . . 1 . . . Targets Rammed 13 | . 3 2 2 . . 6 Kicked 12 | . 3 2 1 . . 6 Crushed . | . . . . . . . Highest Temperature 553 | . 80 9 . . 240 553 Average Temperature 102 | . 41 4 . . 74 164 Received Heat Transfer 1110 | . 81 120 18 . . 891 Effects 4 | . . . . . . 4 Shutdowns 1 | . . . . . . 1 Energy Bleed 2 | . . . . . . 2 Damage (minor) 1 | . . . . . . 1 Siege Activations . | . . . . . . . Robots Corrupted . | . . . . . . . Combat Hostiles . | . . . . . . . Parts Fried . | . . . . . . . Impact Corruptions . | . . . . . . . Robots Melted 3 | . 1 . . . . 2 Combat Hostiles 3 | . 1 . . . . 2 Parts Melted 8 | . 5 . . . 1 2 Heat Transferred 2950 | . 1036 . . . 300 1614 Parts Sabotaged . | . . . . . . . Parts Stolen . | . . . . . . . Parts Stripped . | . . . . . . . Power Chain Reactions . | . . . . . . . Alert | -11 -10 -9 -9 -9 -8 -8 ------- Run | Yrd Mat Mat Min Exi Min Mat Peak Influence 412 | . 236 51 105 . 110 412 Initial 42 | . . 21 . . . 42 Average 96 | . 91 27 33 . 72 278 Maximum Alert Level 2 | . 1 . . . . 2 Low Security (%) 80 | 100 77 100 100 . 100 15 Level 1 17 | . 22 . . . . 72 Level 2 2 | . . . . . . 11 Level 3 . | . . . . . . . Level 4 . | . . . . . . . Level 5 . | . . . . . . . High Security . | . . . . . . . Max Security . | . . . . . . . Squads Dispatched 4 | . . . . . . 4 Investigation . | . . . . . . . Extermination . | . . . . . . . Reinforcement 1 | . . . . . . 1 Assault 1 | . . . . . . 1 Garrison 2 | . . . . . . 2 Intercept . | . . . . . . . Searches Triggered . | . . . . . . . Construction Impeded . | . . . . . . . Haulers Reinforced . | . . . . . . . Active Scanning Responses . | . . . . . . . Cargo Convoy Interrupts . | . . . . . . . Stealth | -11 -10 -9 -9 -9 -8 -8 --------- Run | Yrd Mat Mat Min Exi Min Mat Distress Signals 2 | . 1 . . . . 1 Communications Jammed . | . . . . . . . Distress Signals . | . . . . . . . Times Spotted 60 | . 15 9 6 . 7 23 Peak Tracking Total 7 | . 7 5 4 . 3 5 Tactical Retreats 4 | . 1 . 1 . . 2 Traps | -11 -10 -9 -9 -9 -8 -8 ------- Run | Yrd Mat Mat Min Exi Min Mat Traps Triggered 1 | . 1 . . . . . Indirectly . | . . . . . . . Trap Hack Attempts . | . . . . . . . Triggered . | . . . . . . . Disarmed . | . . . . . . . Reprogrammed . | . . . . . . . Reused . | . . . . . . . Traps Extracted . | . . . . . . . Installed . | . . . . . . . Triggered . | . . . . . . . Machines | -11 -10 -9 -9 -9 -8 -8 ---------- Run | Yrd Mat Mat Min Exi Min Mat Machines Disabled 1 | . . . . . . 1 Max in Single Turn 1 | . . . . . . 1 Garrison Access 1 | . . . . . . 1 Machines Repaired . | . . . . . . . Machines Dismantled . | . . . . . . . Machines Sabotaged . | . . . . . . . Overloaded Fab Kills . | . . . . . . . Hacking | -11 -10 -9 -9 -9 -8 -8 --------- Run | Yrd Mat Mat Min Exi Min Mat Machines Accessed 4 | . 1 . . 1 . 2 Terminals 3 | . 1 . . . . 2 Fabricators . | . . . . . . . Repair Stations . | . . . . . . . Recycling Units . | . . . . . . . Scanalyzers . | . . . . . . . Garrison Access . | . . . . . . . Total Hacks 9 | . 3 . . 1 . 5 Successful 4 | . 2 . . 1 . 1 Failed 5 | . 1 . . . . 4 Catastrophic 1 | . . . . . . 1 Database Lockouts . | . . . . . . . Manual 1 | . . . . 1 . . Terminals 8 | . 3 . . . . 5 Fabricators . | . . . . . . . Repair Stations . | . . . . . . . Recycling Units . | . . . . . . . Scanalyzers . | . . . . . . . Garrison Access . | . . . . . . . Terminal Hacks 4 | . 2 . . 1 . 1 Robot Analysis 1 | . 1 . . . . . Security Status 1 | . . . . . . 1 Investigation Status 1 | . 1 . . . . . Derelict Proto ID Bank 1 | . . . . 1 . . Fabricator Hacks . | . . . . . . . Repair Station Hacks . | . . . . . . . Recycling Unit Hacks . | . . . . . . . Scanalyzer . | . . . . . . . Garrison Access Hacks . | . . . . . . . Unauthorized Hacks . | . . . . . . . Terminals . | . . . . . . . Fabricators . | . . . . . . . Repair Stations . | . . . . . . . Recycling Units . | . . . . . . . Scanalyzers . | . . . . . . . Garrison Access . | . . . . . . . Data Cores Recovered . | . . . . . . . Used . | . . . . . . . Hacking Detections 2 | . 1 . . . . 1 Full Trace Events . | . . . . . . . Feedback Events . | . . . . . . . Feedback Blocked . | . . . . . . . Robot Schematics Acquired . | . . . . . . . Robots Built . | . . . . . . . Authchips . | . . . . . . . Time . | . . . . . . . Total Robot Build Rating . | . . . . . . . Part Schematics Acquired . | . . . . . . . Parts Built . | . . . . . . . Authchips . | . . . . . . . Time . | . . . . . . . Total Part Build Rating . | . . . . . . . Parts Repaired . | . . . . . . . Time . | . . . . . . . Parts Recycled . | . . . . . . . Recycled Matter . | . . . . . . . Retrieved Matter . | . . . . . . . Retrieved Components . | . . . . . . . Parts Scanalyzed . | . . . . . . . Part Schematics Acquired . | . . . . . . . Parts Damaged . | . . . . . . . Bothacking | -11 -10 -9 -9 -9 -8 -8 ------------ Run | Yrd Mat Mat Min Exi Min Mat Used RIF Installer . | . . . . . . . Robots Hacked . | . . . . . . . Non-combat . | . . . . . . . Combat . | . . . . . . . Robot Hacks Applied . | . . . . . . . Relay Couplers Released 1 | . . . . . . 1 Machine Destruction 1 | . . . . . . 1 Fabnet Peak Effective % . | . . . . . . . Robots Rewired . | . . . . . . . Allies Hacked . | . . . . . . . Hacks Repelled . | . . . . . . . Allies | -11 -10 -9 -9 -9 -8 -8 -------- Run | Yrd Mat Mat Min Exi Min Mat Total Allies . | . . . . . . . Largest Group . | . . . . . . . Highest-Rated Group . | . . . . . . . Highest-Rated Ally . | . . . . . . . Total Orders . | . . . . . . . Ally Attacks . | . . . . . . . Total Damage . | . . . . . . . Kills . | . . . . . . . Allies Corrupted . | . . . . . . . Allies Melted . | . . . . . . . Intel | -11 -10 -9 -9 -9 -8 -8 ------- Run | Yrd Mat Mat Min Exi Min Mat Robot Analysis Total 1 | . 1 . . . . . Derelict Logs Recovered 2 | . . . 2 . . . Drone Launches . | . . . . . . . Drone Recoveries . | . . . . . . . Exploration | -11 -10 -9 -9 -9 -8 -8 ------------- Run | Yrd Mat Mat Min Exi Min Mat Turns Passed 3841 | 131 524 430 540 971 719 526 Spaces Moved 1938 | 109 321 179 190 374 383 382 Core 28 | 13 . . . . 7 8 Treads . | . . . . . . . Legs 1519 | 96 321 179 190 374 153 206 Wheels 223 | . . . . . 223 . Hover . | . . . . . . . Flight 168 | . . . . . . 168 Fastest Speed 34 | 50 120 190 260 260 95 34 Average Speed 173 | 111 135 211 260 260 167 80 Slowest Speed 500 | 120 190 260 260 260 500 120 Overloaded Moves . | . . . . . . . Propulsion Burnouts . | . . . . . . . Robots Hopped 1 | . . . . . . 1 Cave-ins Triggered . | . . . . . . . Exploration Rate (%) 39 | 4 53 20 36 70 67 24 Regions Visited 6 Branch Regions 3 Pre-discovered Areas 1 | . . . 1 . . . Known Exits Taken . | . . . . . . . Unknown Exits Taken 6 | 1 1 1 1 1 1 . Scrap Searched . | . . . . . . . Spaces Dug . | . . . . . . . Terrain Destroyed 41 | . . . . . 41 . Melee . | . . . . . . . Projectile . | . . . . . . . AOE 41 | . . . . . 41 . Terrain Rammed 1 | . . . . . . 1 Walls Destroyed . | . . . . . . . Machines Disabled . | . . . . . . . Actions | -11 -10 -9 -9 -9 -8 -8 --------- Run | Yrd Mat Mat Min Exi Min Mat Total 2210 | 116 362 201 214 374 423 520 Wait 75 | . 4 . 9 . 6 56 Move 1930 | 108 320 178 189 373 382 380 Hop 1 | . . . . . . 1 Pick Up 26 | 2 4 6 1 1 7 5 Fast Attach 20 | 5 1 . . . 4 10 Attach 16 | 1 2 . 3 . 2 8 Detach 1 | . . . . . . 1 Swap 5 | . 2 . . . 1 2 Drop 5 | . . . . . 1 4 Fire 109 | . 26 15 10 . 20 38 Melee 8 | . . . . . . 8 Ram 2 | . . . 1 . . 1 Kick 12 | . 3 2 1 . . 6 Crush . | . . . . . . . Escape Stasis . | . . . . . . . Rewire . | . . . . . . . Trap . | . . . . . . . Miscellaneous . | . . . . . . . Route ------- -11/Scrapyard -10/Materials (discovered 2 exits: [*Mat] / [*Min]) -9/Materials -9/Mines (discovered 3 exits: *Mat / *Exi / [*Zio]) -9/Exiles (discovered 2 exits: [*Min x2]) -8/Mines -8/Materials History --------- Turn | Location | Event 22 | -11/Scrapyard | Discovered new exit (range 14) 132 | -11/Scrapyard | Entered Materials 306 | -10/Materials | Discovered new exit (range 7) 317 | -10/Materials | Build established: Mutant 626 | -10/Materials | Discovered new exit (range 15) 656 | -10/Materials | Entered another Materials area 656 | -9/Materials | Evolved 2 slots: Propulsion x2 997 | -9/Materials | Discovered new exit (range 16) 1086 | -9/Materials | Entered Mines 1276 | -9/Mines | Lost 3 parts (1p1n1w) 1460 | -9/Mines | Discovered new exit (range 11) 1461 | -9/Mines | A Derelict revealed a hidden shortcut to a safe place 1489 | -9/Mines | Learned Materials emergency access door positions 1608 | -9/Mines | Deemed a non-threat by the Exiles lab entrance 1608 | -9/Mines | Discovered new exit (range 6) 1626 | -9/Mines | Entered Exiles 1699 | -9/Exiles | Discovered new exit (range 15) 1749 | -9/Exiles | Met 8R-AWN 1808 | -9/Exiles | Met EX-HEX 1954 | -9/Exiles | Met EX-DEC 2084 | -9/Exiles | Met EX-BIN 2141 | -9/Exiles | Aligned with FarCom system 2144 | -9/Exiles | Given EX-Vault access code 2237 | -9/Exiles | Opened EX-Vault 2279 | -9/Exiles | Found Firepult 2335 | -9/Exiles | Warned to stay clear of 0b10 Research branches 2343 | -9/Exiles | Exiles lab attacked by MAIN.C 2556 | -9/Exiles | Discovered new exit (range 12) 2597 | -9/Exiles | Left Exiles lab with Firepult 2597 | -9/Exiles | Entered Mines 3034 | -8/Mines | Core integrity fell below 50% 3055 | -8/Mines | Lost 4 parts (1p1n2w) 3113 | -8/Mines | Discovered new exit (range 15) 3316 | -8/Mines | Entered Materials 3316 | -8/Materials | Evolved 2 slots: Utility x2 3383 | -8/Materials | Lost 7 parts (1p2n1u3w) 3551 | -8/Materials | Lost 5 parts (3n2u) 3808 | -8/Materials | Core integrity fell below 50% 3824 | -8/Materials | Core integrity fell below 20% 3842 | -8/Materials | Destroyed by G-50 Soldier with Heavy Laser Last Messages --------------- 03824_ R-06 Scavenger collects Aluminum Leg. 03826_ G-50 Soldier knocked back. 03827_ R-06 Scavenger collects Lgt. Armor Plating. 03828_ K-01 Serf collects debris. 03828_ Critical hit (Burn: +37). 03832_ G-47 Trooper destroyed. 03833_ K-01 Serf collects debris. 03834_ Sneak attack on K-01 Serf. 03834_ K-01 Serf suffers critical hit (Smash). 03834_ K-01 Serf destroyed. 03835_ R-06 Scavenger collects Med. Matter Pod. 03837_ Acquired 15 matter. 03838_ R-06 Scavenger collects Aluminum Leg. 03838_ Hammer destroyed. 03840_ K-01 Serf cleans the Electrolysis Chamber. 03841_ R-06 Scavenger collects Lgt. Nuclear Core. 03842_ Acquired Particle Gun. Map ----- +----------------------------------------------------+ | *#=! #???#"T """ #??????# #?????? | | !+! #???#"" """"" #??????# """ """ #?????? | | %# #???# """"" #??????# """ """ #?????? | | # #???# """"" #??????# """ """ #?????? | | ### ##??#[ """ #??????# % ##????? | | ?# #??# ???????# | | ## " #??#######??????????# "T" | | "T #???????????????????# """ """ " | | ## #???????????????????# """ ?? | | ?# #???????????????????# ""???? | | ?#######???????????????????#% ######## ? | | ???????????????????????????# #??????? ?? | | ##?????????????????????????# #???????? % ?? | | #??????????????????######?# #???????? ? | | #??????????????????# ?# #????????? ? | | #??????????????????# """ # #????] #??? ? | | #??????????????????# """ # # []] #???? ? | | #??????????????????# """ / + []] #????######? | | #??????????????????#* # # #??????????? | | #??????????????????# # # / #??????????? | | #??????????????????######## #?% #??????????? | | #??????????????????#! *# ###############???? | | #??????????????????# [# / ?? | | ##??????????????????#""" r# k ?? | | ????????????????????#"T g """ """ """????? | | ????????????????????#"""=@%# """ """ ??"?????? | | ????????????????????# ![# """ """ ????????? | | ????????????????????######## g?????????? | | ??????????????????????????? g ?ss??????? | | ??????????????????????????? b ????????? | | ???????????????????w??????? ###########???????? | | ???????????????????????????##+##?????????????????? | | ?????????????????????????????????????????????????? | | ?????????????????????????????????????????????????? | | ?????????????????????????????????????????????????? | | ?????????????????????????????????????????????????? | | ?????????????????????????????????????????????????? | | ?????????????????+???????????????????????????????? | | ?????????????????????????????????????????????????? | | ?????????????????????????????????????????????????? | | ?????????????????????????????????????????????????? | | ?????????????????????????????????????????????????? | | ?????????????????????????????????????????????????? | | ?????????????????????????????????????????????????? | | ?????????????????????????????????????????????????? | | ?????????????????????????????????????????????????? | | ?????????????????????????????????????????????????? | | ?????????????????????????????????????????????????? | | ?????????????????????????????????????????????????? | | ?????????????????????????????????????????????????? | +----------------------------------------------------+ Best States ------------- Heat Dissipation 53 Energy Generation 14 Energy Capacity 250 Matter Stores 300 Matter Capacity 300 Sight Range 20 Terrain Scan Density 10 Armor Coverage 150 Evasion (%) 63 Targeting Accuracy 5 Item Schematics ----------------- None Robot Schematics ------------------ None Fabricated ------------ Nothing Alien Tech Used ----------------- None Achievements -------------- None Challenges ------------ None Game ------ Seed AbsorptionQuantumSteel Manual? 0 Play Time 00:26:43 Cumulative 8.1 hours Start 2024.04.01 @ 09:44:29 End 2024.04.01 @ 10:09:22 Sessions 1 Manual Loads 0 Difficulty Rogue Special Mode None Game No. 40 Rogue 40 Adventurer 0 Explorer 0 Win Type - Total 0 Types 0/0/0/0/0/0/0/0/0 Lore% 9 Gallery% 10 Achievement% 11 Wizard Run 0 Options --------- Layout 1 ASCII 0 Keyboard 1 Movement Arrows Keybinds 0 Fullscreen 1 Font 24/Smallcaps Map View 50x35 Zoom Use 0% Tactical HUD 1 Map Filters NONE Filters NONE Steam 1 RUN: cb5a49a6-0112-4049-8505-3d6ade2f52a2